fUST/lending_fUST_20250408
["ID","MTS","AMOUNT","RATE_DAILY","PERIOD"]
[357446244,1744069857345,-500.0,0.00024383,2]
[357446245,1744069857356,-500.0,0.00024383,2]
[357446246,1744069857366,-500.0,0.00024383,2]
[357446247,1744069857376,-2097.53,0.00024383,2]
[357446248,1744069857386,-500.0,0.00024383,2]
[357446249,1744069857397,-543.0,0.00024383,2]
[357446250,1744069857407,-1782.29,0.00024383,2]
[357446251,1744069857417,-500.0,0.00024383,2]
[357446252,1744069857427,-500.0,0.00024383,2]
[357446253,1744069857437,-500.0,0.00024383,2]
[357446254,1744069857447,-500.0,0.00024383,2]
[357446255,1744069857457,-500.0,0.00024383,2]
[357446256,1744069857467,-500.0,0.00024383,2]
[357446257,1744069857478,-701.32,0.00024383,2]
[357446258,1744069857488,-988.39,0.00024383,2]
[357446259,1744069857499,-181.0615083,0.00024383,2]
[357446260,1744069857508,-1362.09,0.00024383,2]
[357446261,1744069857519,-500.0,0.00024383,2]
[357446262,1744069857529,-500.0,0.00024383,2]
[357446263,1744069857539,-500.0,0.00024383,2]
[357446264,1744069857549,-526.27630408,0.00024383,2]
[357446265,1744069857559,-882.89,0.00024383,2]
[357446266,1744069857570,-307.07026336,0.00024383,2]
[357446267,1744069857579,-773.83,0.00024383,2]
[357446268,1744069857589,-500.0,0.00024383,2]
[357446269,1744069857599,-1227.37,0.00024383,2]
[357446270,1744069857612,-520.09,0.00024383,2]
[357446271,1744069857622,-500.0,0.00024383,2]
[357446272,1744069857631,-500.0,0.00024383,2]
[357446273,1744069857642,-500.0,0.00024383,2]
[357446274,1744069857652,-2645.71,0.00024383,2]
[357446275,1744069857662,-500.0,0.00024383,2]
[357446276,1744069857672,-2088.39,0.00024383,2]
[357446277,1744069857682,-500.0,0.00024383,2]
[357446278,1744069857692,-660.58,0.00024383,2]
[357446279,1744069857702,-500.0,0.00024383,2]
[357446280,1744069857712,-375.45586406,0.00024383,2]
[357446281,1744069857722,-2511.32,0.00024383,2]
[357446282,1744069857732,-500.0,0.00024383,2]
[357446283,1744069857742,-500.0,0.00024383,2]
[357446284,1744069857753,-500.0,0.00024383,2]
[357446285,1744069857763,-500.0,0.00024383,2]
[357446286,1744069857773,-1217.19,0.00024383,2]
[357446287,1744069857783,-1414.71,0.00024383,2]
[357446288,1744069857793,-845.92,0.00024383,2]
[357446289,1744069857803,-1240.98,0.00024383,2]
[357446290,1744069857812,-1232.44,0.00024383,2]
[357446291,1744069857822,-1157.64,0.00024383,2]
[357446292,1744069857832,-4737.12,0.00024383,2]
[357446293,1744069857842,-576.29,0.00024383,2]
[357446294,1744069857852,-500.0,0.00024383,2]
[357446295,1744069857862,-1002.91,0.00024383,2]
[357446296,1744069857872,-2320.11,0.00024383,2]
[357446297,1744069857882,-338.29302781,0.00024383,2]
[357446298,1744069857892,-500.0,0.00024383,2]
[357446299,1744069857902,-500.0,0.00024383,2]
[357446300,1744069857918,-1535.19,0.00024383,2]
[357446301,1744069857929,-500.0,0.00024383,2]
[357446302,1744069857938,-500.0,0.00024383,2]
[357446303,1744069857948,-500.0,0.00024383,2]
[357446304,1744069857958,-500.0,0.00024383,2]
[357446305,1744069857968,-500.0,0.00024383,2]
[357446306,1744069857978,-3065.26,0.00024383,2]
[357446307,1744069857989,-500.0,0.00024383,2]
[357446308,1744069858001,-500.0,0.00024383,2]
[357446309,1744069858011,-1377.29,0.00024383,2]
[357446310,1744069858021,-500.0,0.00024383,2]
[357446311,1744069858032,-1563.99,0.00024383,2]
[357446312,1744069858042,-500.0,0.00024383,2]
[357446313,1744069858052,-500.0,0.00024383,2]
[357446314,1744069858063,-500.0,0.00024383,2]
[357446315,1744069858072,-500.0,0.00024383,2]
[357446316,1744069858082,-500.0,0.00024383,2]
[357446317,1744069858093,-1772.83,0.00024383,2]
[357446318,1744069858103,-500.0,0.00024383,2]
[357446319,1744069858113,-500.0,0.00024383,2]
[357446320,1744069858123,-500.0,0.00024383,2]
[357446321,1744069858133,-1246.5,0.00024383,2]
[357446322,1744069858142,-1765.33,0.00024383,2]
[357446323,1744069858152,-500.0,0.00024383,2]
[357446324,1744069858162,-1937.54,0.00024383,2]
[357446325,1744069858172,-1205.59,0.00024383,2]
[357446326,1744069858181,-1239.2,0.00024383,2]
[357446327,1744069858191,-500.0,0.00024383,2]
[357446328,1744069858200,-613.41,0.00024383,2]
[357446329,1744069858211,-500.0,0.00024383,2]
[357446330,1744069858221,-1146.31,0.00024383,2]
[357446331,1744069858231,-500.0,0.00024383,2]
[357446332,1744069858299,-523.31,0.00024383,2]
[357446333,1744069858310,-500.0,0.00024383,2]
[357446334,1744069858319,-500.0,0.00024383,2]
[357446335,1744069858329,-500.0,0.00024383,2]
[357446336,1744069858338,-995.49,0.00024383,2]
[357446337,1744069858347,-8728.42,0.00024383,2]
[357446338,1744069858357,-1073.09,0.00024383,2]
[357446339,1744069858367,-218.02781813,0.00024383,2]
[357446340,1744069858376,-500.0,0.00024383,2]
[357446341,1744069858385,-500.0,0.00024383,2]
[357446342,1744069858394,-2424.22,0.00024383,2]
[357446343,1744069858404,-500.0,0.00024383,2]
[357446344,1744069858413,-559.81,0.00024383,2]
[357446345,1744069858423,-500.0,0.00024383,2]
[357446346,1744069858432,-1690.5,0.00024383,2]
[357446347,1744069858443,-500.0,0.00024383,2]
[357446348,1744069858453,-500.0,0.00024383,2]
[357446349,1744069858462,-1125.73,0.00024383,2]
[357446350,1744069858472,-544.97,0.00024383,2]
[357446351,1744069858481,-808.68,0.00024383,2]
[357446352,1744069858491,-500.0,0.00024383,2]
[357446353,1744069858500,-160.0,0.00024396,2]
[357446354,1744069858510,-419.36665037,0.00024396,2]
[357446355,1744069858520,-160.0,0.00024396,2]
[357446356,1744069858529,-160.0,0.00024396,2]
[357446357,1744069858539,-409.0,0.00024657,2]
[357446358,1744069858549,-500.0,0.00024657,2]
[357446359,1744069858559,-500.0,0.00024657,2]
[357446360,1744069858568,-500.0,0.00024657,2]
[357446361,1744069858578,-813.25,0.00024657,2]
[357446362,1744069858587,-500.0,0.00024657,2]
[357446363,1744069858597,-686.82,0.00024657,2]
[357446364,1744069858606,-500.0,0.00024657,2]
[357446365,1744069858615,-646.71,0.00024657,2]
[357446366,1744069858625,-500.0,0.00024657,2]
[357446367,1744069858635,-500.0,0.00024657,2]
[357446368,1744069858644,-500.0,0.00024657,2]
[357446369,1744069858653,-500.0,0.00024657,2]
[357446370,1744069858663,-500.0,0.00024657,2]
[357446371,1744069858672,-547.06,0.00024657,2]
[357446372,1744069858681,-500.0,0.00024657,2]
[357446373,1744069858691,-427.4606649,0.00024657,2]
[357446374,1744069858701,-500.0,0.00024657,2]
[357446375,1744069858710,-500.0,0.00024657,2]
[357446376,1744069858719,-802.81,0.00024657,2]
[357446377,1744069858729,-500.0,0.00024657,2]
[357446378,1744069858739,-500.0,0.00024657,2]
[357446379,1744069858749,-500.0,0.00024657,2]
[357446380,1744069858758,-500.0,0.00024657,2]
[357446381,1744069858768,-257.29870656,0.00024657,2]
[357446382,1744069858777,-500.0,0.00024657,2]
[357446383,1744069858786,-780.65,0.00024657,2]
[357446384,1744069858796,-529.74,0.00024657,2]
[357446385,1744069858805,-581.98274341,0.00024657,2]
[357446386,1744069858814,-698.26,0.00024657,2]
[357446387,1744069858824,-500.0,0.00024657,2]
[357446388,1744069858834,-539.68271743,0.00024657,2]
[357446389,1744069858843,-500.0,0.00024657,2]
[357446390,1744069858853,-500.0,0.00024657,2]
[357446391,1744069858862,-542.8,0.00024657,2]
[357446392,1744069858871,-500.0,0.00024657,2]
[357446393,1744069858881,-706.95,0.00024657,2]
[357446394,1744069858890,-520.32831727,0.00024657,2]
[357446395,1744069858899,-980.21,0.00024657,2]
[357446396,1744069858912,-500.0,0.00024657,2]
[357446397,1744069858921,-500.0,0.00024657,2]
[357446398,1744069858930,-500.0,0.00024657,2]
[357446399,1744069858939,-2097.53,0.00024657,2]
[357446400,1744069858950,-500.0,0.00024657,2]
[357446401,1744069858960,-543.0,0.00024657,2]
[357446402,1744069858970,-1782.29,0.00024657,2]
[357446403,1744069858979,-500.0,0.00024657,2]
[357446404,1744069858990,-500.0,0.00024657,2]
[357446405,1744069859001,-500.0,0.00024657,2]
[357446406,1744069859011,-500.0,0.00024657,2]
[357446407,1744069859020,-500.0,0.00024657,2]
[357446408,1744069859029,-500.0,0.00024657,2]
[357446409,1744069859039,-701.32,0.00024657,2]
[357446410,1744069859049,-988.39,0.00024657,2]
[357446411,1744069859059,-1362.09,0.00024657,2]
[357446412,1744069859068,-194.25223658,0.00024657,2]
[357446413,1744069859078,-500.0,0.00024657,2]
[357446414,1744069859087,-500.0,0.00024657,2]
[357446415,1744069859097,-882.89,0.00024657,2]
[357446416,1744069859107,-773.83,0.00024657,2]
[357446417,1744069859117,-500.0,0.00024657,2]
[357446418,1744069859126,-1227.37,0.00024657,2]
[357446419,1744069859135,-520.09,0.00024657,2]
[357446420,1744069859145,-500.0,0.00024657,2]
[357446421,1744069859155,-575.9,0.00024657,2]
[357446422,1744069859164,-500.0,0.00024657,2]
[357446423,1744069859173,-2645.71,0.00024657,2]
[357446424,1744069859183,-616.56551254,0.00024657,2]
[357446425,1744069859192,-2088.39,0.00024657,2]
[357446426,1744069859202,-500.0,0.00024657,2]
[357446427,1744069859211,-660.58,0.00024657,2]
[357446428,1744069859221,-500.0,0.00024657,2]
[357446429,1744069859231,-2511.32,0.00024657,2]
[357446430,1744069859241,-500.0,0.00024657,2]
[357446431,1744069859252,-500.0,0.00024657,2]
[357446432,1744069859262,-500.0,0.00024657,2]
[357446433,1744069859273,-500.0,0.00024657,2]
[357446434,1744069859283,-1217.19,0.00024657,2]
[357446435,1744069859293,-1414.71,0.00024657,2]
[357446436,1744069859303,-845.92,0.00024657,2]
[357446437,1744069859313,-1240.98,0.00024657,2]
[357446438,1744069859323,-1232.44,0.00024657,2]
[357446439,1744069859332,-1157.64,0.00024657,2]
[357446440,1744069859342,-4737.12,0.00024657,2]
[357446441,1744069859352,-576.29,0.00024657,2]
[357446442,1744069859362,-500.0,0.00024657,2]
[357446443,1744069859372,-1002.91,0.00024657,2]
[357446444,1744069859382,-2320.11,0.00024657,2]
[357446445,1744069859392,-454.01450457,0.00024657,2]
[357446446,1744069859402,-500.0,0.00024657,2]
[357446447,1744069859412,-1535.19,0.00024657,2]
[357446448,1744069859422,-500.0,0.00024657,2]
[357446449,1744069859432,-500.0,0.00024657,2]
[357446450,1744069859442,-500.0,0.00024657,2]
[357446451,1744069859452,-500.0,0.00024657,2]
[357446452,1744069859462,-500.0,0.00024657,2]
[357446453,1744069859472,-3065.26,0.00024657,2]
[357446454,1744069859483,-500.0,0.00024657,2]
[357446455,1744069859492,-500.0,0.00024657,2]
[357446456,1744069859503,-1377.29,0.00024657,2]
[357446457,1744069859513,-500.0,0.00024657,2]
[357446458,1744069859523,-1563.99,0.00024657,2]
[357446459,1744069859533,-500.0,0.00024657,2]
[357446460,1744069859543,-500.0,0.00024657,2]
[357446461,1744069859553,-497.40924853,0.00024657,2]
[357446462,1744069859563,-500.0,0.00024657,2]
[357446463,1744069859572,-500.0,0.00024657,2]
[357446464,1744069859582,-1772.83,0.00024657,2]
[357446465,1744069859592,-500.0,0.00024657,2]
[357446466,1744069859603,-500.0,0.00024657,2]
[357446467,1744069859612,-500.0,0.00024657,2]
[357446468,1744069859622,-1246.5,0.00024657,2]
[357446469,1744069859632,-1765.33,0.00024657,2]
[357446470,1744069859642,-500.0,0.00024657,2]
[357446471,1744069859653,-1937.54,0.00024657,2]
[357446472,1744069859662,-1205.59,0.00024657,2]
[357446473,1744069859672,-1239.2,0.00024657,2]
[357446474,1744069859683,-500.0,0.00024657,2]
[357446475,1744069859693,-613.41,0.00024657,2]
[357446476,1744069859702,-500.0,0.00024657,2]
[357446477,1744069859712,-1146.31,0.00024657,2]
[357446478,1744069859723,-500.0,0.00024657,2]
[357446479,1744069859732,-523.31,0.00024657,2]
[357446480,1744069859742,-500.0,0.00024657,2]
[357446481,1744069859752,-500.0,0.00024657,2]
[357446482,1744069859762,-500.0,0.00024657,2]
[357446483,1744069859772,-995.49,0.00024657,2]
[357446484,1744069859782,-8728.42,0.00024657,2]
[357446485,1744069859792,-1073.09,0.00024657,2]
[357446486,1744069859802,-500.0,0.00024657,2]
[357446487,1744069859812,-500.0,0.00024657,2]
[357446488,1744069859822,-2424.22,0.00024657,2]
[357446489,1744069859831,-500.0,0.00024657,2]
[357446490,1744069859841,-559.81,0.00024657,2]
[357446491,1744069859851,-500.0,0.00024657,2]
[357446492,1744069859860,-1690.5,0.00024657,2]
[357446493,1744069859871,-500.0,0.00024657,2]
[357446494,1744069859881,-500.0,0.00024657,2]
[357446495,1744069859891,-1125.73,0.00024657,2]
[357446496,1744069859900,-544.97,0.00024657,2]
[357446497,1744069859913,-808.68,0.00024657,2]
[357446498,1744069859923,-500.0,0.00024657,2]
[357446499,1744069859933,-500.0,0.00024658,2]
[357446500,1744069859943,-500.0,0.00024658,2]
[357446501,1744069859954,-500.0,0.00024658,2]
[357446502,1744069859964,-500.0,0.00024658,2]
[357446503,1744069859974,-500.0,0.00024658,2]
[357446504,1744069859985,-500.0,0.00024658,2]
[357446505,1744069859995,-500.0,0.00024658,2]
[357446506,1744069860005,-500.0,0.00024658,2]
[357446507,1744069860015,-500.0,0.00024658,2]
[357446508,1744069860025,-500.0,0.00024658,2]
[357446509,1744069860035,-500.0,0.00024658,2]
[357446510,1744069860046,-500.0,0.00024658,2]
[357446511,1744069860056,-500.0,0.00024658,2]
[357446512,1744069860066,-500.0,0.00024658,2]
[357446513,1744069860076,-500.0,0.00024658,2]
[357446514,1744069860086,-500.0,0.00024658,2]
[357446515,1744069860096,-500.0,0.00024658,2]
[357446516,1744069860106,-500.0,0.00024658,2]
[357446517,1744069860116,-500.0,0.00024658,2]
[357446518,1744069860126,-500.0,0.00024658,2]
[357446519,1744069860135,-500.0,0.00024658,2]
[357446520,1744069860145,-500.0,0.00024658,2]
[357446521,1744069860156,-500.0,0.00024658,2]
[357446522,1744069860166,-500.0,0.00024658,2]
[357446523,1744069860176,-500.0,0.00024658,2]
[357446524,1744069860187,-500.0,0.00024658,2]
[357446525,1744069860197,-500.0,0.00024658,2]
[357446526,1744069860207,-500.0,0.00024658,2]
[357446527,1744069860216,-500.0,0.00024658,2]
[357446528,1744069860227,-500.0,0.00024658,2]
[357446529,1744069860237,-500.0,0.00024658,2]
[357446530,1744069860247,-500.0,0.00024658,2]
[357446531,1744069860258,-500.0,0.00024658,2]
[357446532,1744069860268,-500.0,0.00024658,2]
[357446533,1744069860285,-500.0,0.00024658,2]
[357446534,1744069860295,-500.0,0.00024658,2]
[357446535,1744069860305,-500.0,0.00024658,2]
[357446536,1744069860315,-500.0,0.00024658,2]
[357446537,1744069860325,-500.0,0.00024658,2]
[357446538,1744069860335,-500.0,0.00024658,2]
[357446539,1744069860346,-500.0,0.00024658,2]
[357446540,1744069860356,-500.0,0.00024658,2]
[357446541,1744069860366,-500.0,0.00024658,2]
[357446542,1744069860376,-500.0,0.00024658,2]
[357446543,1744069860386,-500.0,0.00024658,2]
[357446544,1744069860396,-500.0,0.00024658,2]
[357446545,1744069860406,-500.0,0.00024658,2]
[357446546,1744069860416,-500.0,0.00024658,2]
[357446547,1744069860426,-500.0,0.00024658,2]
[357446548,1744069860436,-500.0,0.00024658,2]
[357446549,1744069860446,-500.0,0.00024658,2]
[357446550,1744069860456,-500.0,0.00024658,2]
[357446551,1744069860466,-500.0,0.00024658,2]
[357446552,1744069860476,-500.0,0.00024658,2]
[357446553,1744069860487,-500.0,0.00024658,2]
[357446554,1744069860497,-500.0,0.00024658,2]
[357446555,1744069860509,-500.0,0.00024658,2]
[357446556,1744069860519,-500.0,0.00024658,2]
[357446557,1744069860529,-500.0,0.00024658,2]
[357446558,1744069860539,-500.0,0.00024658,2]
[357446559,1744069860550,-500.0,0.00024658,2]
[357446560,1744069860561,-500.0,0.00024658,2]
[357446561,1744069860571,-500.0,0.00024658,2]
[357446562,1744069860585,-500.0,0.00024658,2]
[357446563,1744069860594,-414.95724951,0.00024658,2]
[357446564,1744069860604,-500.0,0.00024658,2]
[357446565,1744069860614,-500.0,0.00024658,2]
[357446566,1744069860624,-500.0,0.00024658,2]
[357446567,1744069860634,-500.0,0.00024658,2]
[357446568,1744069860644,-500.0,0.00024658,2]
[357446569,1744069860654,-500.0,0.00024658,2]
[357446570,1744069860663,-500.0,0.00024658,2]
[357446571,1744069860674,-500.0,0.00024658,2]
[357446572,1744069860683,-500.0,0.00024658,2]
[357446573,1744069860693,-389628.458018,0.000249,2]
[357446574,1744069860704,-16529.43203631,0.00024931,3]
[357446575,1744069860714,-19578.44783291,0.00024931,2]
[357446576,1744069860724,-500.0,0.00024931,2]
[357446577,1744069860735,-500.0,0.00024931,2]
[357446578,1744069860745,-500.0,0.00024931,2]
[357446579,1744069860755,-813.25,0.00024931,2]
[357446580,1744069860765,-493.82832632,0.00024931,2]
[357446581,1744069860775,-686.82,0.00024931,2]
[357446582,1744069860786,-500.0,0.00024931,2]
[357446583,1744069860796,-646.71,0.00024931,2]
[357446584,1744069860807,-500.0,0.00024931,2]
[357446585,1744069860817,-500.0,0.00024931,2]
[357446586,1744069860826,-500.0,0.00024931,2]
[357446587,1744069860836,-802.81,0.00024931,2]
[357446588,1744069860846,-500.0,0.00024931,2]
[357446589,1744069860856,-500.0,0.00024931,2]
[357446590,1744069860866,-265.17138352,0.00024931,2]
[357446591,1744069860876,-780.65,0.00024931,2]
[357446592,1744069860887,-529.74,0.00024931,2]
[357446593,1744069860898,-698.26,0.00024931,2]
[357446594,1744069860910,-344.17077606,0.00024931,2]
[357446595,1744069860921,-504.64255801,0.00024931,2]
[357446596,1744069860931,-500.0,0.00024931,2]
[357446597,1744069860941,-542.8,0.00024931,2]
[357446598,1744069860953,-500.0,0.00024931,2]
[357446599,1744069860963,-706.95,0.00024931,2]
[357446600,1744069860973,-980.21,0.00024931,2]
[357446601,1744069860983,-500.0,0.00024931,2]
[357446602,1744069860995,-500.0,0.00024931,2]
[357446603,1744069861008,-500.0,0.00024931,2]
[357446604,1744069861019,-2097.53,0.00024931,2]
[357446605,1744069861030,-500.0,0.00024931,2]
[357446606,1744069861041,-543.0,0.00024931,2]
[357446607,1744069861051,-1782.29,0.00024931,2]
[357446608,1744069861062,-500.0,0.00024931,2]
[357446609,1744069861072,-500.0,0.00024931,2]
[357446610,1744069861083,-500.0,0.00024931,2]
[357446611,1744069861095,-500.0,0.00024931,2]
[357446612,1744069861106,-500.0,0.00024931,2]
[357446613,1744069861117,-500.0,0.00024931,2]
[357446614,1744069861128,-701.32,0.00024931,2]
[357446615,1744069861138,-988.39,0.00024931,2]
[357446616,1744069861150,-1362.09,0.00024931,2]
[357446617,1744069861160,-500.0,0.00024931,2]
[357446618,1744069861170,-500.0,0.00024931,2]
[357446619,1744069861181,-882.89,0.00024931,2]
[357446620,1744069861191,-773.83,0.00024931,2]
[357446621,1744069861201,-500.0,0.00024931,2]
[357446622,1744069861211,-1227.37,0.00024931,2]
[357446623,1744069861222,-520.09,0.00024931,2]
[357446624,1744069861232,-500.0,0.00024931,2]
[357446625,1744069861243,-500.0,0.00024931,2]
[357446626,1744069861256,-2645.71,0.00024931,2]
[357446627,1744069861267,-2088.39,0.00024931,2]
[357446628,1744069861278,-500.0,0.00024931,2]
[357446629,1744069861289,-660.58,0.00024931,2]
[357446630,1744069861299,-500.0,0.00024931,2]
[357446631,1744069861310,-2511.32,0.00024931,2]
[357446632,1744069861320,-500.0,0.00024931,2]
[357446633,1744069861332,-500.0,0.00024931,2]
[357446634,1744069861343,-500.0,0.00024931,2]
[357446635,1744069861354,-315.53545536,0.00024931,2]
[357446636,1744069861364,-1217.19,0.00024931,2]
[357446637,1744069861375,-1414.71,0.00024931,2]
[357446638,1744069861384,-1240.98,0.00024931,2]
[357446639,1744069861395,-845.92,0.00024931,2]
[357446640,1744069861405,-1232.44,0.00024931,2]
[357446641,1744069861417,-1157.64,0.00024931,2]
[357446642,1744069861427,-4737.12,0.00024931,2]
[357446643,1744069861438,-576.29,0.00024931,2]
[357446644,1744069861450,-500.0,0.00024931,2]
[357446645,1744069861461,-1002.91,0.00024931,2]
[357446646,1744069861471,-2320.11,0.00024931,2]
[357446647,1744069861482,-500.0,0.00024931,2]
[357446648,1744069861493,-1535.19,0.00024931,2]
[357446649,1744069861504,-500.0,0.00024931,2]
[357446650,1744069861515,-500.0,0.00024931,2]
[357446651,1744069861526,-500.0,0.00024931,2]
[357446652,1744069861537,-500.0,0.00024931,2]
[357446653,1744069861547,-500.0,0.00024931,2]
[357446654,1744069861559,-3065.26,0.00024931,2]
[357446655,1744069861570,-500.0,0.00024931,2]
[357446656,1744069861719,-500.0,0.00024931,2]
[357446657,1744069861730,-1377.29,0.00024931,2]
[357446658,1744069861740,-500.0,0.00024931,2]
[357446659,1744069861750,-1563.99,0.00024931,2]
[357446660,1744069861761,-500.0,0.00024931,2]
[357446661,1744069861771,-500.0,0.00024931,2]
[357446662,1744069861787,-500.0,0.00024931,2]
[357446663,1744069861804,-500.0,0.00024931,2]
[357446664,1744069861814,-1772.83,0.00024931,2]
[357446665,1744069861824,-500.0,0.00024931,2]
[357446666,1744069861834,-339.5949324,0.00024931,2]
[357446667,1744069861844,-500.0,0.00024931,2]
[357446668,1744069861854,-1246.5,0.00024931,2]
[357446669,1744069861864,-1765.33,0.00024931,2]
[357446670,1744069861874,-500.0,0.00024931,2]
[357446671,1744069861883,-1937.54,0.00024931,2]
[357446672,1744069861893,-1205.59,0.00024931,2]
[357446673,1744069861904,-1239.2,0.00024931,2]
[357446674,1744069861917,-500.0,0.00024931,2]
[357446675,1744069861928,-613.41,0.00024931,2]
[357446676,1744069861938,-500.0,0.00024931,2]
[357446677,1744069861948,-1146.31,0.00024931,2]
[357446678,1744069861958,-500.0,0.00024931,2]
[357446679,1744069861968,-523.31,0.00024931,2]
[357446680,1744069861978,-500.0,0.00024931,2]
[357446681,1744069861989,-500.0,0.00024931,2]
[357446682,1744069862000,-500.0,0.00024931,2]
[357446683,1744069862013,-995.49,0.00024931,2]
[357446684,1744069862024,-8728.42,0.00024931,2]
[357446685,1744069862034,-1073.09,0.00024931,2]
[357446686,1744069862044,-500.0,0.00024931,2]
[357446687,1744069862054,-500.0,0.00024931,2]
[357446688,1744069862064,-2424.22,0.00024931,2]
[357446689,1744069862075,-500.0,0.00024931,2]
[357446690,1744069862086,-559.81,0.00024931,2]
[357446691,1744069862096,-500.0,0.00024931,2]
[357446692,1744069862106,-1690.5,0.00024931,2]
[357446693,1744069862116,-500.0,0.00024931,2]
[357446694,1744069862127,-500.0,0.00024931,2]
[357446695,1744069862137,-1125.73,0.00024931,2]
[357446696,1744069862148,-544.97,0.00024931,2]
[357446697,1744069862158,-808.68,0.00024931,2]
[357446698,1744069862169,-500.0,0.00024931,2]
[357446699,1744069862179,-160.0,0.00025205,3]
[357446700,1744069862189,-160.0,0.00025205,3]
[357446701,1744069862199,-12527.9349248,0.00025205,3]
[357446702,1744069862210,-160.0,0.00025205,3]
[357446703,1744069862220,-368.6,0.00025205,2]
[357446704,1744069862230,-500.0,0.00025205,2]
[357446705,1744069862240,-500.0,0.00025205,2]
[357446706,1744069862251,-813.25,0.00025205,2]
[357446707,1744069862265,-686.82,0.00025205,2]
[357446708,1744069862276,-500.0,0.00025205,2]
[357446709,1744069862286,-646.71,0.00025205,2]
[357446710,1744069862296,-500.0,0.00025205,2]
[357446711,1744069862307,-500.0,0.00025205,2]
[357446712,1744069862317,-500.0,0.00025205,2]
[357446713,1744069862326,-802.81,0.00025205,2]
[357446714,1744069862336,-500.0,0.00025205,2]
[357446715,1744069862346,-500.0,0.00025205,2]
[357446716,1744069862356,-780.65,0.00025205,2]
[357446717,1744069862366,-529.74,0.00025205,2]
[357446718,1744069862377,-698.26,0.00025205,2]
[357446719,1744069862387,-500.0,0.00025205,2]
[357446720,1744069862397,-542.8,0.00025205,2]
[357446721,1744069862408,-706.95,0.00025205,2]
[357446722,1744069862419,-980.21,0.00025205,2]
[357446723,1744069862429,-500.0,0.00025205,2]
[357446724,1744069862439,-500.0,0.00025205,2]
[357446725,1744069862449,-500.0,0.00025205,2]
[357446726,1744069862459,-2097.53,0.00025205,2]
[357446727,1744069862469,-500.0,0.00025205,2]
[357446728,1744069862479,-543.0,0.00025205,2]
[357446729,1744069862489,-1782.29,0.00025205,2]
[357446730,1744069862499,-500.0,0.00025205,2]
[357446731,1744069862512,-500.0,0.00025205,2]
[357446732,1744069862522,-500.0,0.00025205,2]
[357446733,1744069862533,-500.0,0.00025205,2]
[357446734,1744069862543,-500.0,0.00025205,2]
[357446735,1744069862553,-538.98053218,0.00025205,2]
[357446736,1744069862564,-701.32,0.00025205,2]
[357446737,1744069862574,-988.39,0.00025205,2]
[357446738,1744069862584,-1362.09,0.00025205,2]
[357446739,1744069862594,-500.0,0.00025205,2]
[357446740,1744069862604,-181.81918152,0.00025205,2]
[357446741,1744069862615,-882.89,0.00025205,2]
[357446742,1744069862624,-773.83,0.00025205,2]
[357446743,1744069862634,-500.0,0.00025205,2]